fUST/lending_fUST_20240116
["ID","MTS","AMOUNT","RATE_DAILY","PERIOD"]
[311753702,1705378239991,-1863.64,0.0002403,2]
[311753705,1705378240001,-500.95,0.0002403,2]
[311753707,1705378240013,-500.0,0.00024065,2]
[311753709,1705378240021,-500.0,0.00024065,2]
[311753711,1705378240030,-500.0,0.0002407,2]
[311753713,1705378240039,-500.0,0.00024255,2]
[311753715,1705378240049,-1064.74,0.00024255,2]
[311753717,1705378240058,-725.36,0.00024255,2]
[311753719,1705378240067,-153.48,0.00024255,2]
[311753721,1705378240076,-500.0,0.00024255,2]
[311753723,1705378240084,-500.0,0.00024255,2]
[311753725,1705378240093,-500.0,0.00024255,2]
[311753727,1705378240102,-500.0,0.00024256,2]
[311753729,1705378240111,-500.0,0.00024256,2]
[311753731,1705378240120,-500.0,0.00024256,2]
[311753733,1705378240130,-500.0,0.00024256,2]
[311753735,1705378240139,-695.62,0.00024303,2]
[311753737,1705378240148,-3427.47,0.00024303,2]
[311753739,1705378240157,-871.85,0.00024303,2]
[311753741,1705378240166,-500.0,0.00024304,2]
[311753743,1705378240175,-500.0,0.00024304,2]
[311753745,1705378240184,-500.0,0.00024304,2]
[311753747,1705378240193,-1863.64,0.00024304,2]
[311753749,1705378240202,-500.0,0.00024339,2]
[311753751,1705378240211,-562.46989096,0.00024344,2]
[311753753,1705378240220,-500.0,0.00024529,2]
[311753755,1705378240230,-1064.74,0.00024529,2]
[311753757,1705378240239,-725.36,0.00024529,2]
[311753759,1705378240248,-500.0,0.00024529,2]
[311753761,1705378240257,-500.0,0.00024529,2]
[311753763,1705378240266,-500.0,0.00024529,2]
[311753765,1705378240275,-500.0,0.0002453,2]
[311753767,1705378240284,-500.0,0.0002453,2]
[311753769,1705378240293,-500.0,0.0002453,2]
[311753771,1705378240302,-500.0,0.0002453,2]
[311753773,1705378240311,-695.62,0.00024577,2]
[311753775,1705378240320,-3427.47,0.00024577,2]
[311753777,1705378240329,-871.85,0.00024577,2]
[311753779,1705378240339,-500.0,0.00024578,2]
[311753781,1705378240349,-500.0,0.00024578,2]
[311753783,1705378240358,-500.0,0.00024578,2]
[311753785,1705378240367,-1863.64,0.00024578,2]
[311753787,1705378240377,-500.0,0.00024613,2]
[311753789,1705378240387,-1000.0,0.00024657,2]
[311753791,1705378240396,-304.3118027,0.00024658,2]
[311753793,1705378240406,-500.0,0.00024803,2]
[311753795,1705378240415,-1064.74,0.00024803,2]
[311753797,1705378240424,-725.36,0.00024803,2]
[311753799,1705378240433,-500.0,0.00024803,2]
[311753801,1705378240441,-500.0,0.00024803,2]
[311753803,1705378240450,-500.0,0.00024804,2]
[311753805,1705378240459,-500.0,0.00024804,2]
[311753807,1705378240468,-500.0,0.00024804,2]
[311753809,1705378240478,-500.0,0.00024804,2]
[311753811,1705378240487,-170.81326,0.00024813,2]
[311753813,1705378240497,-695.62,0.00024851,2]
[311753815,1705378240507,-3427.47,0.00024851,2]
[311753817,1705378240516,-871.85,0.00024851,2]
[311753819,1705378240525,-500.0,0.00024852,2]
[311753821,1705378240535,-500.0,0.00024852,2]
[311753822,1705378240543,-500.0,0.00024852,2]
[311753823,1705378240552,-1863.64,0.00024852,2]
[311753824,1705378240561,-200.0,0.00024871,7]
[311753825,1705378240570,-500.0,0.00024887,2]
[311753826,1705378240580,-4716.82638211,0.00025,2]
[311753827,1705378240589,-1045.05948708,0.00025,2]
[311753828,1705378240598,-500.0,0.00025077,2]
[311753829,1705378240607,-1064.74,0.00025077,2]
[311753830,1705378240616,-725.36,0.00025077,2]
[311753831,1705378240626,-500.0,0.00025077,2]
[311753836,1705378240716,-500.0,0.00025077,2]
[311753838,1705378240725,-311.61111262,0.00025078,2]
[311753840,1705378240735,-500.0,0.00025078,2]
[311753841,1705378240745,-500.0,0.00025078,2]
[311753844,1705378240755,-500.0,0.00025078,2]
[311753845,1705378240764,-695.62,0.00025125,2]
[311753847,1705378240772,-3427.47,0.00025125,2]
[311753849,1705378240781,-871.85,0.00025125,2]
[311753851,1705378240791,-500.0,0.00025126,2]
[311753853,1705378240800,-500.0,0.00025126,2]
[311753855,1705378240809,-500.0,0.00025126,2]
[311753857,1705378240818,-1863.64,0.00025126,2]
[311753859,1705378240827,-500.0,0.00025161,2]
[311753861,1705378240836,-500.0,0.00025351,2]
[311753863,1705378240845,-1064.74,0.00025351,2]
[311753865,1705378240854,-725.36,0.00025351,2]
[311753867,1705378240866,-500.0,0.00025351,2]
[311753869,1705378240875,-500.0,0.00025351,2]
[311753871,1705378240884,-500.0,0.00025352,2]
[311753873,1705378240893,-500.0,0.00025352,2]
[311753875,1705378240903,-500.0,0.00025352,2]
[311753877,1705378240911,-695.62,0.00025399,2]
[311753879,1705378240920,-3427.47,0.00025399,2]
[311753881,1705378240929,-871.85,0.00025399,2]
[311753883,1705378240938,-500.0,0.000254,2]
[311753885,1705378240950,-500.0,0.000254,2]
[311753887,1705378240959,-500.0,0.000254,2]
[311753889,1705378240968,-1863.64,0.000254,2]
[311753891,1705378240977,-500.0,0.00025435,2]
[311753893,1705378240987,-500.0,0.00025625,2]
[311753895,1705378240996,-1064.74,0.00025625,2]
[311753897,1705378241005,-725.36,0.00025625,2]
[311753899,1705378241015,-500.0,0.00025625,2]
[311753901,1705378241024,-500.0,0.00025625,2]
[311753903,1705378241032,-500.0,0.00025626,2]
[311753905,1705378241041,-539.08587178,0.00025626,2]
[311753907,1705378241052,-500.0,0.00025626,2]
[311753909,1705378241060,-695.62,0.00025673,2]
[311753911,1705378241069,-3427.47,0.00025673,2]
[311753913,1705378241078,-871.85,0.00025673,2]
[311753915,1705378241087,-500.0,0.00025674,2]
[311753916,1705378241096,-500.0,0.00025674,2]
[311753918,1705378241105,-500.0,0.00025674,2]
[311753921,1705378241115,-1863.64,0.00025674,2]
[311753922,1705378241124,-500.0,0.00025709,2]
[311753924,1705378241136,-500.0,0.00025899,2]
[311753926,1705378241145,-1064.74,0.00025899,2]
[311753928,1705378241154,-725.36,0.00025899,2]
[311753930,1705378241163,-500.0,0.00025899,2]
[311753932,1705378241173,-507.48969028,0.00025899,2]
[311753934,1705378241181,-500.0,0.000259,2]
[311753936,1705378241190,-500.0,0.000259,2]
[311753938,1705378241199,-695.62,0.00025947,2]
[311753940,1705378241208,-3427.47,0.00025947,2]
[311753942,1705378241217,-871.85,0.00025947,2]
[311753944,1705378241228,-500.0,0.00025948,2]
[311753946,1705378241237,-576.87022421,0.00025948,2]
[311753948,1705378241247,-500.0,0.00025948,2]
[311753950,1705378241256,-1863.64,0.00025948,2]
[311753952,1705378241265,-500.0,0.00025983,2]
[311753954,1705378241275,-50000.0,0.00025991,2]
[311753956,1705378241285,-500.0,0.00026173,2]
[311753959,1705378241295,-1064.74,0.00026173,2]
[311753961,1705378241304,-725.36,0.00026173,2]
[311753963,1705378241313,-500.0,0.00026173,2]
[311753964,1705378241322,-500.0,0.00026174,2]
[311753966,1705378241331,-235.53613957,0.00026174,2]
[311753968,1705378241341,-695.62,0.00026221,2]
[311753971,1705378241350,-3427.47,0.00026221,2]
[311753973,1705378241359,-871.85,0.00026221,2]
[311753974,1705378241368,-500.0,0.00026222,2]
[311753976,1705378241378,-500.0,0.00026222,2]
[311753978,1705378241387,-1863.64,0.00026222,2]
[311753980,1705378241396,-500.0,0.00026257,2]
[311753982,1705378241405,-620.03094004,0.000264,2]
[311753984,1705378241414,-201.31,0.000264,4]
[311753986,1705378241424,-587.93477192,0.00026447,2]
[311753988,1705378241433,-1064.74,0.00026447,2]
[311753990,1705378241442,-725.36,0.00026447,2]
[311753992,1705378241451,-500.0,0.00026447,2]
[311753994,1705378241460,-500.0,0.00026448,2]
[311753996,1705378241469,-695.62,0.00026495,2]
[311753998,1705378241478,-3427.47,0.00026495,2]
[311754000,1705378241487,-871.85,0.00026495,2]
[311754002,1705378241497,-500.0,0.00026496,2]
[311754004,1705378241507,-500.0,0.00026496,2]
[311754006,1705378241516,-1863.64,0.00026496,2]
[311754008,1705378241526,-2000.0,0.000265,2]
[311754010,1705378241535,-2000.0,0.0002651,2]
[311754012,1705378241544,-2000.0,0.0002652,2]
[311754014,1705378241553,-2000.0,0.0002653,2]
[311754016,1705378241562,-500.0,0.00026531,2]
[311754019,1705378241572,-3151.335608,0.0002654,2]
[311754020,1705378241581,-500.0,0.00026549,2]
[311754023,1705378241590,-407.72110257,0.00026549,2]
[311754025,1705378241601,-500.0,0.00026549,2]
[311754026,1705378241610,-500.0,0.00026549,2]
[311754028,1705378241620,-500.0,0.00026549,2]
[311754030,1705378241629,-500.0,0.00026549,2]
[311754032,1705378241638,-494.91512678,0.00026549,2]
[311754035,1705378241650,-500.0,0.00026549,2]
[311754037,1705378241663,-500.0,0.00026549,2]
[311754040,1705378241676,-500.0,0.00026549,2]
[311754042,1705378241688,-500.0,0.00026549,2]
[311754044,1705378241702,-193.67263033,0.00026549,2]
[311754046,1705378241713,-500.0,0.00026549,2]
[311754048,1705378241724,-500.0,0.00026549,2]
[311754051,1705378241735,-254.47313682,0.00026549,2]
[311754053,1705378241748,-500.0,0.00026549,2]
[311754055,1705378241759,-500.0,0.00026549,2]
[311754057,1705378241771,-500.0,0.00026549,2]
[311754060,1705378241783,-500.0,0.00026549,2]
[311754062,1705378241795,-500.0,0.00026549,2]
[311754064,1705378241807,-500.0,0.00026549,2]
[311754067,1705378241819,-500.0,0.00026549,2]
[311754069,1705378241831,-500.0,0.00026549,2]
[311754071,1705378241841,-500.0,0.00026549,2]
[311754073,1705378241850,-500.0,0.00026549,2]
[311754075,1705378241861,-500.0,0.00026549,2]
[311754077,1705378241872,-500.0,0.00026549,2]
[311754080,1705378241884,-500.0,0.00026549,2]
[311754082,1705378241895,-500.0,0.00026549,2]
[311754084,1705378241906,-210.90884893,0.00026549,2]
[311754086,1705378241916,-500.0,0.00026549,2]
[311754088,1705378241927,-528.797397,0.00026549,2]
[311754091,1705378241939,-500.0,0.00026549,2]
[311754093,1705378241951,-500.0,0.00026549,2]
[311754095,1705378241962,-500.0,0.00026549,2]
[311754097,1705378241972,-500.0,0.00026549,2]
[311754099,1705378241982,-500.0,0.00026549,2]
[311754101,1705378241993,-500.0,0.00026549,2]
[311754103,1705378242005,-500.0,0.00026549,2]
[311754106,1705378242017,-500.0,0.00026549,2]
[311754108,1705378242028,-500.0,0.00026549,2]
[311754110,1705378242040,-500.0,0.00026549,2]
[311754112,1705378242050,-500.0,0.00026549,2]
[311754115,1705378242062,-500.0,0.00026549,2]
[311754117,1705378242071,-500.0,0.00026549,2]
[311754119,1705378242083,-500.0,0.00026549,2]
[311754121,1705378242097,-290.5769318,0.00026549,2]
[311754123,1705378242108,-9110.22573903,0.0002655,4]
[311754126,1705378242118,-772.7638056,0.00026643,2]
[311754128,1705378242130,-1064.74,0.00026721,2]
[311754130,1705378242141,-725.36,0.00026721,2]
[311754132,1705378242153,-500.0,0.00026721,2]
[311754134,1705378242164,-500.0,0.00026722,2]
[311754136,1705378242176,-695.62,0.00026769,2]
[311754139,1705378242188,-3427.47,0.00026769,2]
[311754141,1705378242198,-871.85,0.00026769,2]
[311754143,1705378242208,-500.0,0.0002677,2]
[311754146,1705378242217,-500.0,0.0002677,2]
[311754148,1705378242227,-1863.64,0.0002677,2]
[311754151,1705378242238,-500.0,0.00026805,2]
[311754155,1705378242249,-50000.0,0.0002689,2]
[311754158,1705378242260,-1064.74,0.00026995,2]
[311754161,1705378242271,-725.36,0.00026995,2]
[311754164,1705378242281,-500.0,0.00026995,2]
[311754169,1705378242292,-500.0,0.00026996,2]
[311754172,1705378242303,-289.85545354,0.00027,2]
[311754174,1705378242313,-461.1686624,0.00027,2]
[311754176,1705378242323,-695.62,0.00027043,2]
[311754179,1705378242333,-3427.47,0.00027043,2]
[311754181,1705378242343,-871.85,0.00027043,2]
[311754183,1705378242352,-500.0,0.00027044,2]
[311754185,1705378242362,-500.0,0.00027044,2]
[311754187,1705378242373,-1863.64,0.00027044,2]
[311754189,1705378242383,-500.0,0.00027079,2]
[311754191,1705378242393,-497.68470195,0.00027184,5]
[311754193,1705378242403,-1064.74,0.00027269,2]
[311754196,1705378242414,-725.36,0.00027269,2]
[311754200,1705378242424,-500.0,0.00027269,2]
[311754203,1705378242434,-500.0,0.0002727,2]
[311754206,1705378242444,-695.62,0.00027317,2]
[311754209,1705378242454,-3427.47,0.00027317,2]
[311754212,1705378242465,-871.85,0.00027317,2]
[311754215,1705378242476,-360.55404913,0.00027318,2]
[311754218,1705378242486,-500.0,0.00027318,2]
[311754222,1705378242497,-1863.64,0.00027318,2]
[311754225,1705378242507,-500.0,0.00027353,2]
[311754229,1705378242518,-280.0,0.00027358,15]
[311754232,1705378242528,-500.0,0.00027397,2]
[311754235,1705378242538,-500.0,0.00027397,2]
[311754237,1705378242548,-500.0,0.00027397,2]
[311754239,1705378242558,-500.0,0.00027397,2]
[311754241,1705378242568,-500.0,0.00027397,2]
[311754243,1705378242579,-500.0,0.00027397,2]
[311754245,1705378242589,-500.0,0.00027397,2]
[311754247,1705378242600,-153.36868539,0.00027397,2]
[311754249,1705378242612,-500.0,0.00027397,2]
[311754251,1705378242622,-500.0,0.00027534,2]
[311754254,1705378242633,-1064.74,0.00027543,2]
[311754256,1705378242643,-725.36,0.00027543,2]
[311754258,1705378242654,-500.0,0.00027543,2]
[311754260,1705378242665,-500.0,0.00027544,2]
[311754262,1705378242676,-695.62,0.00027591,2]
[311754264,1705378242686,-3427.47,0.00027591,2]
[311754267,1705378242697,-871.85,0.00027591,2]
[311754269,1705378242708,-500.0,0.00027592,2]
[311754281,1705378242820,-1863.64,0.00027592,2]
[311754283,1705378242830,-500.0,0.00027627,2]
[311754285,1705378242839,-500.0,0.00027671,2]
[311754287,1705378242849,-620.001547,0.0002772,2]
[311754289,1705378242858,-500.0,0.00027808,2]
[311754291,1705378242868,-1064.74,0.00027816,2]
[311754293,1705378242879,-725.36,0.00027816,2]
[311754294,1705378242888,-500.0,0.00027816,2]
[311754295,1705378242896,-435.26191874,0.00027818,2]
[311754296,1705378242905,-695.62,0.00027865,2]
[311754297,1705378242915,-3427.47,0.00027865,2]
[311754298,1705378242924,-871.85,0.00027865,2]
[311754299,1705378242932,-534.85094173,0.00027866,2]
[311754300,1705378242941,-1863.64,0.00027866,2]
[311754301,1705378242951,-500.0,0.00027901,2]
[311754302,1705378242960,-500.0,0.00027945,2]
[311754303,1705378242969,-2148.41716,0.00028,2]
[311754304,1705378242977,-500.0,0.00028082,2]
[311754305,1705378242986,-1064.74,0.0002809,2]
[311754306,1705378242996,-725.36,0.0002809,2]
[311754307,1705378243005,-500.0,0.0002809,2]
[311754308,1705378243014,-695.62,0.00028139,2]
[311754309,1705378243023,-3427.47,0.00028139,2]
[311754310,1705378243032,-871.85,0.00028139,2]
[311754311,1705378243041,-1863.64,0.0002814,2]
[311754312,1705378243050,-230.47201386,0.00028175,2]
[311754313,1705378243059,-5000.0,0.00028199,5]
[311754314,1705378243068,-500.0,0.00028219,2]
[311754315,1705378243077,-22598.33152597,0.00028232,3]
[311754316,1705378243086,-50000.0,0.00028232,4]
[311754317,1705378243094,-59903.60868093,0.00028232,4]
[311754318,1705378243103,-13556.60631331,0.00028232,3]
[311754319,1705378243119,-2454.50529405,0.00028232,3]
[311754320,1705378243130,-6046.93507088,0.00028232,3]
[311754322,1705378243200,-376.58101851,0.00023981,2]
[311754324,1705378243209,-237.81348901,0.00024803,2]
[311754326,1705378243219,-3631.35050763,0.00028232,3]
[311754328,1705378243228,-7718.92733189,0.00028232,4]
[311754571,1705378245846,-509.76,0.00023482,2]
[311754572,1705378245856,-500.0,0.00023981,2]
[311754574,1705378245865,-500.0,0.00024255,2]
[311754576,1705378245874,-500.0,0.00024529,2]
[311754578,1705378245883,-500.0,0.00024803,2]
[311754580,1705378245893,-500.0,0.00025077,2]
[311754582,1705378245902,-522.68,0.00025351,2]
[311754585,1705378245929,-805.4,0.00025981,3]
[311754587,1705378245938,-500.0,0.00026549,2]
[311754589,1705378245947,-500.0,0.00026549,2]
[311754591,1705378245956,-500.0,0.00026549,2]
[311754593,1705378245966,-500.0,0.00026549,2]
[311754595,1705378245975,-528.78963156,0.00026549,2]
[311754597,1705378245983,-42054.31439307,0.00028232,4]
[311754599,1705378245993,-151.0,0.00028232,2]
[311754601,1705378246002,-284.02229075,0.00028239,4]
[311754603,1705378246011,-500.0,0.00028239,4]
[311754605,1705378246020,-500.0,0.00028239,4]
[311754607,1705378246029,-500.0,0.00028239,4]
[311754609,1705378246038,-500.0,0.00028239,4]
[311754611,1705378246047,-500.0,0.00028239,4]
[311754613,1705378246056,-500.0,0.00028239,4]
[311754615,1705378246065,-503.63417362,0.00028239,4]
[311754617,1705378246074,-500.0,0.00028239,4]
[311754619,1705378246083,-500.0,0.00028239,4]
[311754621,1705378246092,-500.0,0.00028239,4]
[311754623,1705378246101,-251.96322894,0.00028239,4]
[311754625,1705378246110,-286.106613,0.00028239,4]
[311754628,1705378246125,-213.893387,0.00028239,4]
[311754630,1705378246133,-368.06995782,0.00028239,4]
[311754632,1705378246143,-317.10481426,0.00028239,4]
[311757197,1705378703459,976.79905731,0.00020881,2]
[311757212,1705379051331,154.98450155,0.00020331,4]
[311757217,1705379147321,1215.07982023,0.000189,2]
[311757218,1705379179427,200.0,0.00020331,2]
[311757219,1705379179752,-170.81326,0.00021688,2]
[311757220,1705379181234,192.5837348,0.00021687,2]
[311757221,1705379181262,130.1792437,0.00021687,2]
[311757222,1705379183068,316.30771893,0.00020331,2]
[311757223,1705379183093,316.30771893,0.00020331,2]
[311757224,1705379183118,316.30771893,0.00020331,2]
[311757225,1705379183140,1129.88527855,0.00020331,2]
[311757226,1705379189295,154.98450155,0.00020326,4]
[311757228,1705379224903,-2133.70735955,0.00021582,2]
[311757229,1705379225003,-43.54504815,0.00021582,2]
[311757232,1705379372045,24900.0,0.00020821,2]
[311757265,1705379431912,-166.80011479,0.00021813,2]
[311757267,1705379431921,-687.23089543,0.00021814,2]
[311757269,1705379431931,-15897.44232842,0.00021816,2]
[311757271,1705379431940,-15204.41172658,0.00021816,2]
[311757273,1705379431949,-19680.32630382,0.00021817,2]
[311757275,1705379431958,-3741.03452946,0.00021818,2]
[311757277,1705379431967,-301.52967926,0.00021819,2]
[311757279,1705379431976,-679.24429502,0.00021821,2]
[311757281,1705379431985,-2454.31215094,0.00021824,2]
[311757283,1705379431994,-283.497635,0.00021825,2]
[311757286,1705379432003,-166.666666,0.00021918,2]
[311757288,1705379432012,-10137.79263349,0.00022,2]
[311757290,1705379432021,-166.666666,0.00022431,2]
[311757292,1705379432030,-7503.2,0.00022462,3]
[311757293,1705379432039,-284.47045082,0.00022472,2]
[311757295,1705379432048,-553.8722645,0.00022568,2]
[311757297,1705379432058,-500.0,0.00022568,2]
[311757300,1705379432067,-9003.84,0.00022569,3]
[311757301,1705379432077,-8283.53161424,0.00022579,2]
[311757367,1705379438071,-361.0943622,0.00021812,2]
[311757368,1705379438081,-500.0,0.00022568,2]
[311757369,1705379438091,-72830.2801384,0.00022579,2]
[311757370,1705379438101,-155.94478719,0.00022584,2]
[311757371,1705379438111,-322.87152922,0.00022584,2]
[311757372,1705379438121,-154.98450155,0.00022584,2]
[311757373,1705379438131,-6503.75405267,0.00022584,2]
[311757374,1705379438140,-191.21768709,0.00022585,2]
[311757375,1705379438149,-175.00244479,0.00022585,2]
[311757376,1705379438159,-155.23431751,0.00022585,2]
[311757377,1705379438169,-214.11957916,0.00022585,2]
[311757378,1705379438178,-309.95350465,0.00022586,2]
[311757379,1705379438188,-521.00009772,0.00022586,2]
[311757380,1705379438198,-250.6299784,0.00022586,2]
[311757381,1705379438207,-253.58775268,0.00022586,2]
[311757382,1705379438217,-155.17027842,0.00022587,2]
[311757383,1705379438227,-161.06769399,0.00022588,2]
[311757384,1705379438238,-154.98450155,0.00022588,2]
[311757385,1705379438247,-562.74168545,0.00022588,2]
[311757386,1705379438257,-195.8402758,0.00022589,2]
[311757387,1705379438267,-2742.41278082,0.00022589,2]
[311757388,1705379438281,-452.10708087,0.0002259,2]
[311757389,1705379438291,-1200.81755105,0.0002259,2]
[311757390,1705379438301,-262.31396518,0.0002259,2]
[311757391,1705379438311,-521.10576847,0.00022591,2]
[311757392,1705379438321,-154.98450155,0.00022596,2]
[311757393,1705379438331,-1031.50825959,0.00022601,2]
[311757394,1705379438341,-295.71637171,0.00022607,2]
[311757395,1705379438352,-166.666666,0.00022944,2]
[311757396,1705379438362,-245.90750508,0.00023201,2]
[311757397,1705379438373,-861.45126448,0.00023201,2]
[311757398,1705379438384,-155.28637108,0.00023202,2]
[311757399,1705379438394,-166.666666,0.00023456,2]
[311757400,1705379438403,-4840.93,0.00023479,2]
[311757401,1705379438414,-500.0,0.0002348,2]
[311757402,1705379438424,-500.0,0.0002348,2]
[311757403,1705379438435,-500.0,0.0002348,2]
[311757404,1705379438444,-500.0,0.0002348,2]
[311757405,1705379438454,-500.0,0.0002348,2]
[311757406,1705379438464,-500.0,0.0002348,2]
[311757407,1705379438473,-500.0,0.0002348,2]
[311757408,1705379438483,-168.49388473,0.0002348,2]
[311757409,1705379438494,-500.0,0.0002348,2]
[311757410,1705379438504,-500.0,0.0002348,2]
[311757411,1705379438514,-500.0,0.0002348,2]
[311757412,1705379438528,-500.0,0.0002348,2]
[311757413,1705379438539,-500.0,0.0002348,2]
[311757414,1705379438548,-500.0,0.0002348,2]
[311757415,1705379438558,-500.0,0.0002348,2]
[311757416,1705379438568,-500.0,0.00023481,2]
[311757417,1705379438577,-500.0,0.00023481,2]
[311757418,1705379438587,-505.39912987,0.00023481,2]
[311757419,1705379438597,-501.08,0.00023481,2]
[311757420,1705379438606,-500.0,0.00023481,2]
[311757421,1705379438616,-9185.44,0.00023481,2]
[311757422,1705379438626,-1855.53,0.00023481,2]
[311757423,1705379438635,-501.10516711,0.00023481,2]
[311757424,1705379438645,-500.0,0.00023481,2]
[311757425,1705379438655,-505.80766858,0.00023481,2]
[311757426,1705379438664,-533.71370212,0.00023481,2]
[311757427,1705379438674,-1827.26,0.00023481,2]
[311757428,1705379438683,-500.0,0.00023481,2]
[311757429,1705379438693,-500.0,0.00023481,2]
[311757430,1705379438702,-500.0,0.00023481,2]
[311757431,1705379438710,-500.0,0.00023481,2]
[311757432,1705379438720,-500.0,0.00023481,2]
[311757433,1705379438729,-444.62789711,0.00023482,2]
[311757434,1705379438739,-573.95,0.00023482,2]
[311757435,1705379438748,-504.61317082,0.00023482,2]
[311757436,1705379438757,-500.0,0.00023482,2]
[311757437,1705379438766,-500.0,0.00023482,2]
[311757438,1705379438779,-154.98450155,0.000235,2]
[311757439,1705379438789,-4840.93,0.00023753,2]
[311757440,1705379438798,-500.0,0.00023754,2]
[311757441,1705379438807,-500.0,0.00023754,2]
[311757442,1705379438817,-500.0,0.00023754,2]
[311757443,1705379438826,-532.49556324,0.00023754,2]
[311757444,1705379438835,-500.0,0.00023754,2]
[311757445,1705379438845,-500.0,0.00023754,2]
[311757446,1705379438854,-500.0,0.00023754,2]
[311757447,1705379438863,-500.0,0.00023754,2]
[311757448,1705379438872,-500.0,0.00023754,2]
[311757449,1705379438883,-500.0,0.00023754,2]
[311757450,1705379438892,-500.0,0.00023754,2]
[311757451,1705379438901,-500.0,0.00023754,2]
[311757452,1705379438911,-500.0,0.00023755,2]
[311757453,1705379438920,-501.08,0.00023755,2]
[311757454,1705379438930,-500.0,0.00023755,2]
[311757455,1705379438939,-9185.44,0.00023755,2]
[311757456,1705379438949,-1855.53,0.00023755,2]
[311757457,1705379438958,-163.3226322,0.00023755,2]
[311757458,1705379438967,-1827.26,0.00023755,2]
[311757459,1705379438977,-500.0,0.00023755,2]
[311757460,1705379438986,-500.0,0.00023755,2]
[311757461,1705379438997,-500.0,0.00023755,2]
[311757462,1705379439007,-500.0,0.00023755,2]
[311757463,1705379439016,-500.0,0.00023755,2]
[311757464,1705379439027,-500.0,0.00023756,2]
[311757465,1705379439038,-500.0,0.00023756,2]
[311757466,1705379439048,-500.0,0.00023791,2]
[311757467,1705379439058,-770.83,0.00023791,2]
[311757468,1705379439067,-500.0,0.00023791,2]
[311757469,1705379439077,-500.0,0.00023791,2]
[311757470,1705379439087,-500.0,0.00023791,2]
[311757471,1705379439097,-500.0,0.00023791,2]
[311757472,1705379439106,-500.0,0.00023791,2]
[311757473,1705379439117,-1215.07982023,0.000239,2]
[311757474,1705379439126,-166.666666,0.00023969,2]
[311757475,1705379439135,-875.01165605,0.00023979,2]
[311757476,1705379439145,-4009.14861616,0.00024,2]
[311757477,1705379439154,-200.0,0.00024,7]
[311757478,1705379439164,-4840.93,0.00024027,2]
[311757479,1705379439174,-500.0,0.00024028,2]
[311757480,1705379439184,-500.0,0.00024028,2]
[311757481,1705379439194,-500.0,0.00024028,2]
[311757482,1705379439204,-500.0,0.00024028,2]
[311757483,1705379439214,-500.0,0.00024028,2]
[311757484,1705379439224,-203.36778694,0.00024028,2]
[311757485,1705379439234,-501.46614651,0.00024028,2]
[311757486,1705379439243,-500.0,0.00024028,2]
[311757487,1705379439339,-815.79,0.00024028,2]
[311757488,1705379439357,-500.0,0.00024028,2]
[311757489,1705379439368,-500.0,0.00024028,2]
[311757490,1705379439377,-501.08,0.00024029,2]
[311757491,1705379439387,-9185.44,0.00024029,2]
[311757492,1705379439399,-500.0,0.00024029,2]
[311757493,1705379439410,-1855.53,0.00024029,2]
[311757494,1705379439419,-1827.26,0.00024029,2]
[311757495,1705379439429,-500.0,0.00024029,2]